[Event "Czech Open Rapid G1 2024"]
[Site "Pardubice"]
[Date "2024.07.18"]
[Round "5.5"]
[White "Stocek, Jiri"]
[Black "Kulon, Klaudia"]
[Result "0-1"]
[Annotator "TA"]
[ECO "E90"]
[WhiteElo "2524"]
[BlackElo "2380"]
[PlyCount "110"]
[EventDate "2024.07.16"]
[EventType "swiss"]
[EventCountry "CZE"]
[SourceTitle "playchess.com"]
[Source "ChessBase"]
[SourceQuality "1"]
[TimeControl "1200+10"]

{[%evp 24,110,33,44,45,50,47,32,101,0,0,0,0,-57,0,4,16,22,27,0,0,0,0,0,0,0,0,8,11,0,17,28,32,2,18,20,23,14,23,17,14,0,12,0,7,0,0,0,8,0,0,-8,-8,-7,-10,-41,-43,-43,-43,-118,-113,-113,-102,-218,-236,-239,-235,-289,-289,-289,-289,-289,-282,-282,-260,-260,-260,-253,-231,-275,-268,-275,-275,-5518,-5916,-29985,-306,-29986,-29987]} 1. d4 {[%emt 0:00:03]} Nf6 {[%emt 0:00:04]} 2. c4 {[%emt 0:00:01]} g6 {[%emt 0:00:01]} 3. Nc3 {[%emt 0:00:02]} Bg7 {[%emt 0:00:01]} 4. e4 {[%emt 0:00:07]} O-O {[%emt 0:00:03]} 5. Nf3 {[%emt 0:00:06]} d6 {[%emt 0:00:02]} 6. Bg5 {[%emt 0:00:14]} h6 {[%emt 0:00:11]} 7. Be3 {[%emt 0:00:03]} e5 {[%emt 0:00:20] E90: King's Indian: Classical: Early deviations and 6 h3.} 8. h3 {[%emt 0:00:16]} exd4 {[%emt 0:00:26]} 9. Nxd4 {[%emt 0:00:03]} Re8 {[%emt 0:00:05]} 10. Bd3 {[%emt 0:00:03]} c6 $146 {[%emt 0:00:37]} ({Predecessor:} 10... Nbd7 11. O-O Nc5 12. Qc2 Qe7 13. Rfe1 c6 14. Rad1 Nxd3 15. Qxd3 Nd7 16. b3 Nc5 {1-0 Stocek,J (2569)-Sokolov,A (2362) CZE-chT1W 1920 2019 (8.3)}) 11. O-O {[%emt 0:00:28]} Na6 {[%emt 0:01:44]} 12. Re1 {[%emt 0:00:23]} Nc5 {[%emt 0:02:09]} 13. Qc2 {[%emt 0:00:15]} d5 {[%emt 0:00:38]} 14. Nxc6 {[%emt 0:02:26]} bxc6 {[%emt 0:00:02]} 15. Bxc5 {[%emt 0:00:02]} d4 {[%emt 0:00:05]} (15... dxe4 $1 $14 16. Bf1 (16. Bxe4 Nxe4 17. Rxe4 Bf5 $14) (16. Nxe4 Bxh3 17. Nd6 Rxe1+ 18. Rxe1 Bg4 $14) 16... Nd7 17. Nxe4 Nxc5 (17... Rxe4 $2 18. Qxe4 Nxc5 19. Qxc6 $18) 18. Nxc5 Rxe1 19. Rxe1 Bxh3) 16. e5 {[%emt 0:01:59]} ({Better is} 16. Ne2 $16) 16... Nh5 $11 {[%emt 0:00:33]} 17. Ne4 {[%emt 0:00:45]} Rxe5 {[%emt 0:01:19]} 18. Rad1 {[%emt 0:02:13]} (18. Qd2 $11) 18... Nf4 {[%emt 0:02:11]} (18... Bf5 $1 $15 19. g4 Nf4 (19... Bxe4 20. Bxe4 Rxc5 21. gxh5 $17) 20. gxf5 Nxh3+ (20... gxf5 21. Ng3 $11) 21. Kf1 Nf4 (21... gxf5 22. Ng3 $11)) 19. Bf1 $11 {[%emt 0:01:19]} d3 {[%emt 0:00:20]} (19... Bf5 {simplifies} 20. Bxd4 Rxe4 21. Rxe4 Bxd4 22. Rdxd4 Qxd4 23. Rxd4 Bxc2 24. Rxf4 Rb8) 20. Qd2 {[%emt 0:01:20]} (20. Bxd3 Qh4 21. Bd6 Nxg2 22. Kxg2 Qxh3+ 23. Kg1 Rh5 $17) 20... Qh4 {[%emt 0:01:37]} 21. Bd6 {[%emt 0:04:50]} (21. b4 $5) 21... Rxe4 {[%emt 0:02:07]} 22. Rxe4 {[%emt 0:00:04]} Nxh3+ $1 {[%emt 0:00:01]} 23. gxh3 {[%emt 0:00:01]} Qxe4 {[%emt 0:00:02]} 24. b3 {[%emt 0:02:33]} Qh4 {[%emt 0:02:29]} 25. Qxd3 {[%emt 0:00:30]} Bf5 {[%emt 0:00:39]} 26. Qf3 {[%emt 0:00:24]} (26. Qe3 {simplifies} Qh5 27. Re1 Rd8 28. c5) 26... Bd4 {[%emt 0:01:28]} 27. Qf4 {[%emt 0:00:51]} Qxf4 {[%emt 0:00:38]} 28. Bxf4 {[%emt 0:00:01]} c5 {[%emt 0:00:01]} 29. Bxh6 {[%emt 0:00:26]} Re8 {[%emt 0:00:01]} 30. b4 {[%emt 0:00:23]} Re6 {[%emt 0:02:10]} 31. Bf4 {[%emt 0:00:48]} Ra6 {[%emt 0:00:01]} 32. Rd2 {[%emt 0:00:29]} Ra3 {[%emt 0:00:02]} 33. Kh2 {[%emt 0:00:37]} Kh7 {[%emt 0:00:55]} 34. bxc5 {[%emt 0:00:05]} Bxc5 {[%emt 0:00:01]} 35. Bg3 {[%emt 0:00:09]} Rc3 {[%emt 0:00:43]} 36. Rd5 {[%emt 0:00:07]} Bb6 {[%emt 0:00:14]} 37. a4 {[%emt 0:00:08]} Rc2 {[%emt 0:00:01]} 38. Kg1 {[%emt 0:00:35]} Rc1 {[%emt 0:00:01]} 39. a5 {[%emt 0:00:30]} Bxh3 {[%emt 0:00:11]} 40. axb6 {[%emt 0:00:04]} axb6 {[%emt 0:00:11]} 41. Bf4 {[%emt 0:00:25]} (41. Rb5 $15) 41... Rxf1+ $17 {[%emt 0:00:47]} 42. Kh2 {[%emt 0:00:01]} Be6 {[%emt 0:00:03]} 43. Rd8 {[%emt 0:00:12]} (43. Kg2 $17 Bxd5+ 44. Kxf1 Bxc4+ 45. Kg2) 43... Rxf2+ $19 {[%emt 0:00:28]} ({Resist} 43... Bxc4 44. Be3) 44. Kg3 {[%emt 0:00:02]} Rc2 {[%emt 0:00:08]} 45. Be5 {[%emt 0:00:08]} g5 {[%emt 0:00:02]} ({Stronger than} 45... Rxc4 46. Rh8#) 46. Rb8 {[%emt 0:00:39]} Rxc4 {[%emt 0:00:03]} 47. Rxb6 {[%emt 0:00:01]} Re4 {[%emt 0:00:11]} 48. Bb8 {[%emt 0:00:03]} Re3+ {[%emt 0:00:10]} 49. Kf2 {[%emt 0:00:02]} Ra3 {[%emt 0:00:06]} 50. Bd6 {[%emt 0:00:06]} Ra2+ {[%emt 0:00:21]} 51. Kg3 {[%emt 0:00:06]} Kg6 {[%emt 0:00:01]} 52. Be7 {[%emt 0:00:05]} Rd2 {[%emt 0:00:29]} 53. Rb8 $2 {[%emt 0:00:41]} (53. Kf3) 53... f5 $19 {[%emt 0:00:29]} 54. Rb6 {[%emt 0:00:10]} f4+ {[%emt 0:00:01]} 55. Kf3 {[%emt 0:00:02]} Kf5 {[%emt 0:00:02]} 0-1

[Event "Czech Open Rapid G1 2024"]
[Site "Pardubice"]
[Date "2024.07.18"]
[Round "5.6"]
[White "Pulpan, Jakub"]
[Black "Jares, Michal"]
[Result "1-0"]
[Annotator "TA"]
[ECO "A30"]
[WhiteElo "2383"]
[BlackElo "2382"]
[PlyCount "73"]
[EventDate "2024.07.16"]
[EventType "swiss"]
[EventCountry "CZE"]
[SourceTitle "playchess.com"]
[Source "ChessBase"]
[SourceQuality "1"]
[TimeControl "1200+10"]

{[%evp 19,73,0,4,7,1,8,15,-6,-18,-14,59,14,27,10,18,12,63,41,53,54,51,56,149,145,154,163,221,220,213,198,181,199,205,177,286,289,280,299,272,309,626,616,666,680,762,736,767,754,826,782,826,801,812,782,816,814]} 1. Nf3 {[%emt 0:00:13]} d5 {[%emt 0:00:05]} 2. e3 {[%emt 0:00:34]} Nf6 {[%emt 0:00:06]} 3. c4 {[%emt 0:00:18]} e6 {[%emt 0:00:08]} 4. b3 {[%emt 0:00:07]} Be7 {[%emt 0:00:35]} 5. Bb2 {[%emt 0:00:02]} O-O {[%emt 0:00:03]} 6. Be2 {[%emt 0:00:12]} b6 {[%emt 0:01:05]} 7. O-O {[%emt 0:00:05]} Bb7 {[%emt 0:00:12]} 8. cxd5 {[%emt 0:01:19]} Nxd5 {[%emt 0:01:06]} 9. d4 {[%emt 0:01:08]} c5 {[%emt 0:00:32]} 10. dxc5 {[%emt 0:00:43]} Bxc5 {[%emt 0:00:13]} 11. Nbd2 {[%emt 0:00:05]} Be7 {[%emt 0:01:23]} 12. Rc1 {[%emt 0:00:08]} Nd7 {[%emt 0:00:21]} 13. Rc4 {[%emt 0:01:53] The position is equal.} Bf6 {[%emt 0:01:36]} 14. Nd4 {[%emt 0:02:02]} Ba6 {[%emt 0:02:07]} (14... Ne5 $11 15. Ra4 a6) 15. Rc1 {[%emt 0:00:24]} (15. Nc6 {feels hotter.} Qe8 16. Ne4 Be7 17. Ra4) 15... Bxe2 {[%emt 0:00:09]} 16. Qxe2 {[%emt 0:00:02]} Nc5 {[%emt 0:02:28]} 17. Nc4 {[%emt 0:02:14]} Rc8 {[%emt 0:00:56]} (17... Qd7 $11) 18. Rcd1 {[%emt 0:00:37]} Qe7 {[%emt 0:01:05]} 19. e4 {[%emt 0:01:52]} Nf4 {[%emt 0:00:41]} 20. Qe3 {[%emt 0:00:34]} Bg5 {[%emt 0:00:46] [#] Black is now going downhill.} ({Better is} 20... Bxd4 $1 $14 21. Bxd4 Ng6) 21. h4 $1 $16 {[%emt 0:02:43][%mdl 512]} Bh6 {[%emt 0:00:37][%cal Of4g2] [#]} 22. Qf3 {[%emt 0:00:20] aiming for g3.} Rfd8 {[%emt 0:03:59]} (22... Qxh4 23. g3 Qh5 24. gxf4) (22... f6 {keeps fighting.} 23. g3 Ng6) 23. g3 $18 {[%emt 0:00:33]} Ng6 {[%emt 0:00:23]} 24. Nb5 {[%emt 0:00:58]} Rxd1 {[%emt 0:00:57]} 25. Rxd1 {[%emt 0:00:03]} Rd8 {[%emt 0:00:02]} 26. Nbd6 {[%emt 0:01:40]} b5 {[%emt 0:00:45]} (26... Qc7 {might work better.} 27. e5 Nb7) 27. Nxb5 {[%emt 0:00:32][%cal Bd6b5,Bb5c7,Bc7a6][%mdl 32]} Rxd1+ {[%emt 0:00:01]} 28. Qxd1 {[%emt 0:00:01]} Nxe4 {[%emt 0:00:12]} 29. Qd4 {[%emt 0:00:15][%csl LRa7,LRe4]} a6 $2 {[%emt 0:00:37]} (29... Qb7 30. Qxa7 (30. Nxa7 Nf8 $18) 30... Qxb5 31. Qa8+ Nf8) 30. Ba3 {[%emt 0:01:32] White is clearly winning.} Qe8 {[%emt 0:01:45]} 31. Nc7 {[%emt 0:00:04]} Nxg3 {[%emt 0:00:09]} 32. fxg3 {[%emt 0:00:13]} ({Not} 32. Nxe8 Ne2+ 33. Kf1 Nxd4 $14) 32... Qc8 {[%emt 0:00:01] [#]} 33. Nxa6 $1 {[%emt 0:00:41][%mdl 512]} f6 {[%emt 0:00:19][%cal Bf7f6,Bf6e5][%mdl 32]} (33... e5 34. Nb6) 34. Qd6 {[%emt 0:00:20]} Ne5 {[%emt 0:00:11]} 35. Nxe5 {[%emt 0:00:48]} Be3+ {[%emt 0:00:02]} 36. Kf1 {[%emt 0:00:04]} fxe5 {[%emt 0:00:15]} 37. Qb8 {[%emt 0:00:01] Weighted Error Value: White=0.05 (flawless) /Black=0.51.  Mistake:       	---       	Black=6      Inaccurate:     	White=1     	---        OK:         	White=7     	Black=10     Best:        	White=3     	---        Brilliant:      	White=1     	---} 1-0

[Event "Czech Open Rapid G1 2024"]
[Site "Pardubice"]
[Date "2024.07.18"]
[Round "5.7"]
[White "Rasik, Vitezslav"]
[Black "Seger, Ruediger"]
[Result "1/2-1/2"]
[Annotator "TA"]
[ECO "B10"]
[WhiteElo "2415"]
[BlackElo "2264"]
[PlyCount "76"]
[EventDate "2024.07.16"]
[EventType "swiss"]
[EventCountry "CZE"]
[SourceTitle "playchess.com"]
[Source "ChessBase"]
[SourceQuality "1"]
[TimeControl "1200+10"]

{[%evp 14,76,15,0,16,5,9,0,9,14,12,21,20,14,11,12,19,14,37,20,20,0,8,-7,37,37,31,52,40,51,43,20,18,13,39,34,39,48,52,33,41,38,55,42,42,27,35,8,13,9,11,-13,0,0,0,0,0,0,0,0,0,0,0,0,0]} 1. e4 {[%emt 0:00:05][%cal Be2e4,Be4d5][%mdl 32]} c6 {[%emt 0:00:01]} 2. c4 {[%emt 0:00:09]} d5 {[%emt 0:00:01]} 3. cxd5 {[%emt 0:00:03]} cxd5 {[%emt 0:00:01]} 4. exd5 {[%emt 0:00:02]} Nf6 {[%emt 0:00:02]} 5. Bb5+ {[%emt 0:00:03]} Nbd7 {[%emt 0:00:02][%cal Bb8d7,Bd7b6,Bb6d5][%mdl 32]} 6. Nc3 {[%emt 0:00:03]} a6 {[%emt 0:00:16]} 7. Be2 {[%emt 0:00:08]} Nb6 {[%emt 0:00:08]} 8. Nf3 {[%emt 0:00:10]} Nbxd5 {[%emt 0:00:02]} 9. O-O {[%emt 0:00:16]} e6 {[%emt 0:00:06]} 10. d4 {[%emt 0:01:37]} Be7 {[%emt 0:00:03]} 11. Ne5 {[%emt 0:00:28]} O-O {[%emt 0:00:04]} 12. Bf3 {[%emt 0:00:28]} Bd7 {[%emt 0:01:40]} 13. Bg5 {[%emt 0:00:20]} Bc6 {[%emt 0:00:30]} 14. Nxc6 {[%emt 0:00:31]} bxc6 {[%emt 0:00:02]} 15. Na4 {[%emt 0:00:54]} Qa5 {[%emt 0:00:38]} 16. Bh4 {[%emt 0:01:08]} Rac8 {[%emt 0:03:12]} 17. Rc1 {[%emt 0:00:22]} Rfd8 {[%emt 0:00:18]} 18. b3 {[%emt 0:01:37]} c5 {[%emt 0:00:53]} 19. dxc5 {[%emt 0:02:41]} Bxc5 {[%emt 0:03:16]} 20. Rxc5 {[%emt 0:01:06]} Rxc5 {[%emt 0:00:02]} 21. Nxc5 {[%emt 0:00:02]} Qxc5 {[%emt 0:00:02]} 22. Bxf6 {[%emt 0:01:59]} gxf6 {[%emt 0:00:02]} 23. Qd2 {[%emt 0:01:12]} Qb4 {[%emt 0:05:37]} 24. Rd1 {[%emt 0:01:18] [#] Strongly threatening Qxb4.} Qxd2 {[%emt 0:00:03]} 25. Rxd2 $14 {[%emt 0:00:02][%mdl 4096] Endgame. KRB-KRN} Rc8 $1 {[%emt 0:00:01]} 26. g3 {[%emt 0:00:49]} Nb4 {[%emt 0:00:15]} 27. a3 {[%emt 0:00:50]} Nc2 {[%emt 0:00:38]} 28. Bb7 {[%emt 0:01:24]} Rc7 {[%emt 0:00:06]} 29. Bxa6 {[%emt 0:00:21]} Nxa3 {[%emt 0:00:02]} 30. b4 {[%emt 0:01:16]} Rc1+ {[%emt 0:00:59] The position is equal.} 31. Kg2 {[%emt 0:00:01]} Rb1 {[%emt 0:00:07] Prevents Rb2.} 32. Rd8+ {[%emt 0:00:10]} Kg7 {[%emt 0:00:10]} 33. Rb8 {[%emt 0:00:10]} Nc2 {[%emt 0:00:41]} 34. b5 {[%emt 0:00:54]} Nd4 {[%emt 0:00:02]} 35. b6 {[%emt 0:01:58] [#] aiming for b7.} Nc6 {[%emt 0:00:15]} 36. Rb7 {[%emt 0:00:04]} Na5 {[%emt 0:00:06]} 37. Rb8 {[%emt 0:00:16]} Nc6 {[%emt 0:00:02]} 38. Rb7 {[%emt 0:00:12]} Na5 {[%emt 0:00:01] Weighted Error Value: White=0.06 (flawless) /Black=0.06 (flawless) .  Inaccurate:     	White=1     	Black=2      OK:         	White=15    	Black=12     Best:        	---       	Black=2      Strong:       	---       	Black=1} 1/2-1/2

[Event "Czech Open Rapid G1 2024"]
[Site "Pardubice"]
[Date "2024.07.18"]
[Round "5.8"]
[White "Konopka, Michal"]
[Black "Sherman, Raem"]
[Result "1-0"]
[Annotator "RC"]
[ECO "E05"]
[WhiteElo "2326"]
[BlackElo "2358"]
[PlyCount "87"]
[EventDate "2024.07.16"]
[EventType "swiss"]
[EventCountry "CZE"]
[SourceTitle "playchess.com"]
[Source "ChessBase"]
[SourceQuality "1"]
[TimeControl "1200+10"]

1. Nf3 {[%emt 0:00:58]} d5 {[%emt 0:00:08]} 2. d4 {[%emt 0:00:05]} Nf6 {[%emt 0:00:02]} 3. c4 {[%emt 0:00:03]} e6 {[%emt 0:00:03]} 4. g3 {[%emt 0:00:05]} Be7 {[%emt 0:00:01]} 5. Bg2 {[%emt 0:00:02]} O-O {[%emt 0:00:06]} 6. O-O {[%emt 0:00:06]} dxc4 {[%emt 0:00:02]} 7. Qa4 {[%emt 0:00:09]} a6 {[%emt 0:00:02]} 8. Qxc4 {[%emt 0:00:03]} b5 {[%emt 0:00:02]} 9. Qc2 {[%emt 0:00:01]} Bb7 {[%emt 0:00:02]} 10. Bg5 {[%emt 0:00:05]} Be4 {[%emt 0:00:09]} 11. Qc1 {[%emt 0:00:40]} Ra7 {[%emt 0:03:24]} 12. Nbd2 {[%emt 0:01:23]} Ba8 {[%emt 0:00:33]} 13. Nb3 {[%emt 0:01:20]} Nbd7 {[%emt 0:00:45]} 14. Rd1 {[%emt 0:03:00]} h6 {[%emt 0:02:02]} 15. Bxf6 {[%emt 0:00:17]} Bxf6 {[%emt 0:00:20]} 16. Nc5 {[%emt 0:01:55]} Qe7 {[%emt 0:00:48]} 17. Nxd7 {[%emt 0:00:28]} Qxd7 {[%emt 0:00:02]} 18. Qc5 {[%emt 0:00:02]} c6 {[%emt 0:01:04]} 19. Ne5 {[%emt 0:00:15]} Qc7 {[%emt 0:00:02]} 20. Nxc6 {[%emt 0:01:28]} Bxc6 {[%emt 0:00:11]} 21. Qxc6 {[%emt 0:01:55]} Qa5 {[%emt 0:00:52]} 22. a4 {[%emt 0:01:20]} b4 {[%emt 0:01:15]} 23. Rac1 {[%emt 0:00:51]} Qd8 {[%emt 0:00:35]} 24. b3 {[%emt 0:00:49]} Qb8 {[%emt 0:00:06]} 25. d5 {[%emt 0:01:25]} exd5 {[%emt 0:00:08]} 26. Bxd5 {[%emt 0:00:03]} Bc3 {[%emt 0:00:28]} 27. Bc4 {[%emt 0:00:14]} Kh8 {[%emt 0:01:34]} 28. Bxa6 {[%emt 0:01:22]} f5 {[%emt 0:00:34]} 29. Rd6 {[%emt 0:00:52]} Be5 {[%emt 0:00:37]} 30. Rd7 {[%emt 0:00:55]} f4 {[%emt 0:00:45]} 31. Rxa7 {[%emt 0:00:53]} Qxa7 {[%emt 0:00:07]} 32. Qc5 {[%emt 0:00:06]} Qb8 {[%emt 0:00:03]} 33. Qxf8+ {[%emt 0:00:18]} Qxf8 {[%emt 0:00:10]} 34. Rc8 {[%emt 0:00:01]} Qxc8 {[%emt 0:00:20]} 35. Bxc8 {[%emt 0:00:01]} fxg3 {[%emt 0:00:16]} 36. hxg3 {[%emt 0:00:00]} Bc7 {[%emt 0:00:01]} 37. Kg2 {[%emt 0:00:15]} Kg8 {[%emt 0:00:02]} 38. Kf3 {[%emt 0:00:02]} Bb6 {[%emt 0:00:09]} 39. e3 {[%emt 0:00:02]} Kf7 {[%emt 0:00:01]} 40. Ke4 {[%emt 0:00:01]} Ke7 {[%emt 0:00:12]} 41. Kd5 {[%emt 0:00:02]} Kd8 {[%emt 0:01:02]} 42. Kc6 {[%emt 0:00:01]} Bc7 {[%emt 0:00:26]} 43. Bf5 {[%emt 0:00:18]} Be5 {[%emt 0:00:17]} 44. a5 {[%emt 0:00:08]} 1-0

[Event "Czech Open Rapid G1 2024"]
[Site "Pardubice"]
[Date "2024.07.18"]
[Round "5.9"]
[White "Ludvik, Tomas"]
[Black "Cerveny, Martin"]
[Result "1-0"]
[Annotator "RC"]
[ECO "D31"]
[WhiteElo "2210"]
[BlackElo "2325"]
[PlyCount "75"]
[EventDate "2024.07.16"]
[EventType "swiss"]
[EventCountry "CZE"]
[SourceTitle "playchess.com"]
[Source "ChessBase"]
[SourceQuality "1"]
[TimeControl "1200+10"]

1. d4 {[%emt 0:00:05]} d5 {[%emt 0:00:03]} 2. c4 {[%emt 0:00:03]} e6 {[%emt 0:00:02]} 3. Nc3 {[%emt 0:00:03]} c6 {[%emt 0:00:04]} 4. e4 {[%emt 0:00:04]} dxe4 {[%emt 0:00:02]} 5. Nxe4 {[%emt 0:00:02]} Bb4+ {[%emt 0:00:01]} 6. Bd2 {[%emt 0:00:02]} Qxd4 {[%emt 0:00:06]} 7. Bxb4 {[%emt 0:00:05]} Qxe4+ {[%emt 0:00:03]} 8. Be2 {[%emt 0:00:08]} Na6 {[%emt 0:00:04]} 9. Ba5 {[%emt 0:00:15]} f6 {[%emt 0:00:12]} 10. Qd8+ {[%emt 0:01:40]} Kf7 {[%emt 0:00:03]} 11. Rd1 {[%emt 0:01:55]} Qxg2 {[%emt 0:07:42]} 12. Bf3 {[%emt 0:00:44]} Qg5 {[%emt 0:00:25]} 13. Ne2 {[%emt 0:02:08]} Qf5 {[%emt 0:01:59]} 14. Bg2 {[%emt 0:01:33]} b6 {[%emt 0:05:37]} 15. Bc3 {[%emt 0:01:34]} Bb7 {[%emt 0:00:20]} 16. Qd7+ {[%emt 0:02:26]} Ne7 {[%emt 0:00:02]} 17. Qxb7 {[%emt 0:04:00]} Nc5 {[%emt 0:00:08]} 18. Qc7 {[%emt 0:00:01]} Nd3+ {[%emt 0:00:04]} 19. Rxd3 {[%emt 0:00:36]} Qxd3 {[%emt 0:00:02]} 20. Qg3 {[%emt 0:03:28]} Qxc4 {[%emt 0:01:45]} 21. Qf3 {[%emt 0:02:00]} Rhd8 {[%emt 0:01:32]} 22. O-O {[%emt 0:00:01]} Qxa2 {[%emt 0:00:30]} 23. Nf4 {[%emt 0:00:52]} Qc4 {[%emt 0:01:35]} 24. Bh3 {[%emt 0:00:08]} Rd6 {[%emt 0:01:29]} 25. Re1 {[%emt 0:00:03]} Nf5 {[%emt 0:00:16]} 26. Qh5+ {[%emt 0:00:21]} Kg8 {[%emt 0:00:00]} 27. Bxf5 {[%emt 0:00:01]} Qxf4 {[%emt 0:00:19]} 28. Bxe6+ {[%emt 0:00:09]} Kh8 {[%emt 0:00:12]} 29. Bf5 {[%emt 0:00:04]} Qg5+ {[%emt 0:00:08]} 30. Qxg5 {[%emt 0:00:01]} fxg5 {[%emt 0:00:00]} 31. Re7 {[%emt 0:00:04]} Rg8 {[%emt 0:00:22]} 32. Be6 {[%emt 0:00:20]} Rxe6 {[%emt 0:00:02]} 33. Rxe6 {[%emt 0:00:00]} c5 {[%emt 0:00:06]} 34. Re7 {[%emt 0:00:01]} a5 {[%emt 0:00:01]} 35. Rb7 {[%emt 0:00:02]} h6 {[%emt 0:00:32]} 36. Rxb6 {[%emt 0:00:01]} Ra8 {[%emt 0:00:02]} 37. Rxh6+ {[%emt 0:00:03]} Kg8 {[%emt 0:00:01]} 38. Rg6 {[%emt 0:00:03]} 1-0